[Event "Early-Titled-Tuesday-Blitz-January-30-2024"]
[Site "Chess.com"]
[Date "2024.01.30"]
[Round "8"]
[White "hmatyi07"]
[Black "MoreChessJulia"]
[Result "1-0"]
[WhiteElo "2212"]
[BlackElo "2094"]
[TimeControl "180+1"]
[EndTime "9:25:03 PST"]
[Termination "hmatyi07 won by resignation"]

1. e4 {[%clk 0:02:51.5]} 1... c5 {[%clk 0:02:59.8]} 2. Nf3 {[%clk 0:02:49.3]}
2... d6 {[%clk 0:02:59.7]} 3. d4 {[%clk 0:02:48.9]} 3... cxd4 {[%clk 0:02:59.9]}
4. Nxd4 {[%clk 0:02:49.8]} 4... Nf6 {[%clk 0:03:00]} 5. Nc3 {[%clk 0:02:50.4]}
5... a6 {[%clk 0:02:58.8]} 6. Rg1 {[%clk 0:02:49.5]} 6... e5 {[%clk 0:02:57.8]}
7. Nb3 {[%clk 0:02:49.3]} 7... Be6 {[%clk 0:02:57.2]} 8. g4 {[%clk 0:02:47.9]}
8... h6 {[%clk 0:02:54.9]} 9. Be3 {[%clk 0:02:42.6]} 9... Nbd7 {[%clk
0:02:53.4]} 10. h4 {[%clk 0:02:36.2]} 10... b5 {[%clk 0:02:50.4]} 11. g5 {[%clk
0:02:35.4]} 11... hxg5 {[%clk 0:02:49.7]} 12. hxg5 {[%clk 0:02:36.3]} 12... Ng4
{[%clk 0:02:48.8]} 13. Rxg4 {[%clk 0:02:31.6]} 13... Bxg4 {[%clk 0:02:47.8]} 14.
Qxg4 {[%clk 0:02:32.1]} 14... Nc5 {[%clk 0:02:45.7]} 15. O-O-O {[%clk
0:02:01.5]} 15... Nxb3+ {[%clk 0:02:44.3]} 16. cxb3 {[%clk 0:01:59]} 16... Rc8
{[%clk 0:02:44.5]} 17. Kb1 {[%clk 0:01:57.1]} 17... Qa5 {[%clk 0:02:43.3]} 18.
Qxc8+ {[%clk 0:01:52.2]} 1-0

[Event "Early-Titled-Tuesday-Blitz-January-30-2024"]
[Site "Chess.com"]
[Date "2024.01.30"]
[Round "8"]
[White "maurovargas01"]
[Black "LeoWin2012"]
[Result "1-0"]
[WhiteElo "1844"]
[BlackElo "2174"]
[TimeControl "180+1"]
[EndTime "9:25:27 PST"]
[Termination "maurovargas01 won by checkmate"]

1. e4 {[%clk 0:02:37.7]} 1... e6 {[%clk 0:03:00.9]} 2. f4 {[%clk 0:02:37.3]}
2... a6 {[%clk 0:03:01.8]} 3. Nf3 {[%clk 0:02:36.6]} 3... h6 {[%clk 0:02:59.6]}
4. d4 {[%clk 0:02:33.2]} 4... c6 {[%clk 0:02:58.8]} 5. c3 {[%clk 0:02:33.3]}
5... g6 {[%clk 0:02:58.6]} 6. g4 {[%clk 0:02:31.1]} 6... Bg7 {[%clk 0:02:58.7]}
7. Bg2 {[%clk 0:02:30.3]} 7... b6 {[%clk 0:02:58.8]} 8. O-O {[%clk 0:02:30.3]}
8... Bb7 {[%clk 0:02:57.8]} 9. Qc2 {[%clk 0:02:26]} 9... Ne7 {[%clk 0:02:57.4]}
10. Be3 {[%clk 0:02:21.2]} 10... d6 {[%clk 0:02:57.1]} 11. Nbd2 {[%clk
0:02:19.8]} 11... Nd7 {[%clk 0:02:55]} 12. f5 {[%clk 0:02:18.4]} 12... gxf5
{[%clk 0:02:50.4]} 13. gxf5 {[%clk 0:02:17.9]} 13... e5 {[%clk 0:02:49.5]} 14.
Nc4 {[%clk 0:02:16.6]} 14... Nc8 {[%clk 0:02:46.2]} 15. dxe5 {[%clk 0:02:10.5]}
15... Nxe5 {[%clk 0:02:37.6]} 16. Ncxe5 {[%clk 0:02:07.1]} 16... Bxe5 {[%clk
0:02:38.5]} 17. Nxe5 {[%clk 0:02:04.3]} 17... dxe5 {[%clk 0:02:39.4]} 18. Rad1
{[%clk 0:02:04.4]} 18... Qe7 {[%clk 0:02:39.2]} 19. f6 {[%clk 0:02:02.4]} 19...
Qe6 {[%clk 0:02:37.3]} 20. Qd3 {[%clk 0:01:59.5]} 20... O-O {[%clk 0:02:27.6]}
21. Bxh6 {[%clk 0:01:57.6]} 21... Re8 {[%clk 0:02:28]} 22. Qg3+ {[%clk
0:01:56.8]} 22... Kh7 {[%clk 0:02:25.7]} 23. Qg7# {[%clk 0:01:56.5]} 1-0

[Event "Early-Titled-Tuesday-Blitz-January-30-2024"]
[Site "Chess.com"]
[Date "2024.01.30"]
[Round "8"]
[White "MathiasWomacka"]
[Black "cristiano78"]
[Result "1-0"]
[WhiteElo "2533"]
[BlackElo "2288"]
[TimeControl "180+1"]
[EndTime "9:25:30 PST"]
[Termination "MathiasWomacka won by resignation"]

1. e4 {[%clk 0:03:00.9]} 1... c5 {[%clk 0:02:59.5]} 2. Nf3 {[%clk 0:03:00]} 2...
d6 {[%clk 0:02:56.8]} 3. d4 {[%clk 0:03:00.2]} 3... cxd4 {[%clk 0:02:57.1]} 4.
Nxd4 {[%clk 0:03:00.6]} 4... Nf6 {[%clk 0:02:57.7]} 5. Nc3 {[%clk 0:02:59.9]}
5... g6 {[%clk 0:02:56.4]} 6. Be3 {[%clk 0:02:58.8]} 6... Bg7 {[%clk 0:02:55.6]}
7. f3 {[%clk 0:02:59.4]} 7... O-O {[%clk 0:02:55.5]} 8. Qd2 {[%clk 0:02:59.9]}
8... Nc6 {[%clk 0:02:55.4]} 9. O-O-O {[%clk 0:03:00]} 9... d5 {[%clk 0:02:55.8]}
10. exd5 {[%clk 0:03:00.5]} 10... Nxd5 {[%clk 0:02:55.4]} 11. Nxc6 {[%clk
0:02:59.3]} 11... bxc6 {[%clk 0:02:55.1]} 12. Bd4 {[%clk 0:02:59.8]} 12... e5
{[%clk 0:02:53.3]} 13. Bc5 {[%clk 0:02:59.5]} 13... Be6 {[%clk 0:02:53.6]} 14.
Ne4 {[%clk 0:02:58.9]} 14... Qc7 {[%clk 0:02:52.9]} 15. Bxf8 {[%clk 0:02:57.4]}
15... Rxf8 {[%clk 0:02:49.3]} 16. Bc4 {[%clk 0:02:55.8]} 16... Rd8 {[%clk
0:02:43.3]} 17. Bb3 {[%clk 0:02:49.2]} 17... h6 {[%clk 0:02:42.2]} 18. c4 {[%clk
0:02:47.1]} 18... f5 {[%clk 0:02:42]} 19. cxd5 {[%clk 0:02:40.7]} 19... cxd5+
{[%clk 0:02:40.7]} 20. Nc3 {[%clk 0:02:38]} 20... Bf7 {[%clk 0:02:33.9]} 21. Kb1
{[%clk 0:02:34.1]} 21... d4 {[%clk 0:02:33.6]} 22. Bxf7+ {[%clk 0:02:32.9]}
22... Qxf7 {[%clk 0:02:30.6]} 23. Ne2 {[%clk 0:02:29]} 23... e4 {[%clk
0:02:28.9]} 24. fxe4 {[%clk 0:02:26]} 24... d3 {[%clk 0:02:28.7]} 25. exf5
{[%clk 0:02:15.8]} 25... Qxf5 {[%clk 0:02:20]} 26. Nc3 {[%clk 0:02:15.1]} 1-0

[Event "Early-Titled-Tuesday-Blitz-January-30-2024"]
[Site "Chess.com"]
[Date "2024.01.30"]
[Round "8"]
[White "Agibileg"]
[Black "SharapovEvgeny"]
[Result "1-0"]
[WhiteElo "2774"]
[BlackElo "2563"]
[TimeControl "180+1"]
[EndTime "9:25:52 PST"]
[Termination "Agibileg won by resignation"]

1. d4 {[%clk 0:03:00.8]} 1... d5 {[%clk 0:02:59.2]} 2. c4 {[%clk 0:03:00.7]}
2... c6 {[%clk 0:02:59.5]} 3. Nf3 {[%clk 0:02:59.9]} 3... Nf6 {[%clk 0:02:59.4]}
4. Nc3 {[%clk 0:03:00.1]} 4... e6 {[%clk 0:02:59.6]} 5. Bg5 {[%clk 0:02:58.9]}
5... Nbd7 {[%clk 0:02:59.2]} 6. cxd5 {[%clk 0:02:58.2]} 6... exd5 {[%clk
0:02:59.1]} 7. e3 {[%clk 0:02:58.5]} 7... Be7 {[%clk 0:02:56.1]} 8. Bd3 {[%clk
0:02:58.5]} 8... Nh5 {[%clk 0:02:55.9]} 9. Bxe7 {[%clk 0:02:57.9]} 9... Qxe7
{[%clk 0:02:56.4]} 10. O-O {[%clk 0:02:55.5]} 10... g6 {[%clk 0:02:56.4]} 11.
Qb1 {[%clk 0:02:50.5]} 11... O-O {[%clk 0:02:56]} 12. b4 {[%clk 0:02:50.6]}
12... a6 {[%clk 0:02:55.8]} 13. a4 {[%clk 0:02:50.1]} 13... Ndf6 {[%clk
0:02:55.7]} 14. Rc1 {[%clk 0:02:46.5]} 14... Ng7 {[%clk 0:02:55.3]} 15. b5
{[%clk 0:02:45.9]} 15... axb5 {[%clk 0:02:55.5]} 16. axb5 {[%clk 0:02:46.8]}
16... Rxa1 {[%clk 0:02:54.3]} 17. Qxa1 {[%clk 0:02:47.7]} 17... Bf5 {[%clk
0:02:54.7]} 18. Bxf5 {[%clk 0:02:47.3]} 18... Nxf5 {[%clk 0:02:54.6]} 19. bxc6
{[%clk 0:02:48]} 19... bxc6 {[%clk 0:02:54.8]} 20. Qa6 {[%clk 0:02:44.6]} 20...
c5 {[%clk 0:02:49.2]} 21. dxc5 {[%clk 0:02:43.3]} 21... Ne4 {[%clk 0:02:48.7]}
22. Nxd5 {[%clk 0:02:41.4]} 22... Qd8 {[%clk 0:02:41]} 23. Qc4 {[%clk
0:02:32.5]} 23... Nf6 {[%clk 0:02:35.4]} 24. e4 {[%clk 0:02:27.8]} 24... Nxd5
{[%clk 0:02:31.9]} 25. exd5 {[%clk 0:02:28.3]} 25... Ne7 {[%clk 0:02:31.9]} 26.
d6 {[%clk 0:02:26.2]} 26... Nc6 {[%clk 0:02:31.9]} 27. Nd4 {[%clk 0:02:25.3]}
27... Ne5 {[%clk 0:02:30.2]} 28. Qd5 {[%clk 0:02:24.7]} 28... Nd3 {[%clk
0:02:30.1]} 29. Rd1 {[%clk 0:02:20.6]} 29... Qa5 {[%clk 0:02:23.1]} 30. Nc6
{[%clk 0:02:16.5]} 1-0

[Event "Early-Titled-Tuesday-Blitz-January-30-2024"]
[Site "Chess.com"]
[Date "2024.01.30"]
[Round "8"]
[White "NovakRatko"]
[Black "tetrix83"]
[Result "1/2-1/2"]
[WhiteElo "2389"]
[BlackElo "2543"]
[TimeControl "180+1"]
[EndTime "9:26:06 PST"]
[Termination "Game drawn by repetition"]

1. d4 {[%clk 0:02:59.7]} 1... Nf6 {[%clk 0:02:59.3]} 2. c4 {[%clk 0:03:00.1]}
2... g6 {[%clk 0:02:57.4]} 3. Nc3 {[%clk 0:03:00.2]} 3... Bg7 {[%clk 0:02:58.1]}
4. e4 {[%clk 0:03:00.5]} 4... O-O {[%clk 0:02:58.5]} 5. f3 {[%clk 0:03:01.1]}
5... d6 {[%clk 0:02:58.7]} 6. Be3 {[%clk 0:03:01.8]} 6... e5 {[%clk 0:02:55.9]}
7. Nge2 {[%clk 0:03:01.8]} 7... c6 {[%clk 0:02:54.6]} 8. Qd2 {[%clk 0:03:00.1]}
8... Nbd7 {[%clk 0:02:52.6]} 9. d5 {[%clk 0:02:59.4]} 9... cxd5 {[%clk
0:02:50.2]} 10. cxd5 {[%clk 0:02:59]} 10... a6 {[%clk 0:02:50.5]} 11. g4 {[%clk
0:02:59]} 11... h5 {[%clk 0:02:48.6]} 12. gxh5 {[%clk 0:02:53.2]} 12... Nxh5
{[%clk 0:02:47.9]} 13. Ng3 {[%clk 0:02:52.2]} 13... Nf4 {[%clk 0:02:45.5]} 14.
Bxf4 {[%clk 0:02:46.6]} 14... exf4 {[%clk 0:02:45.5]} 15. Qxf4 {[%clk
0:02:47.5]} 15... Ne5 {[%clk 0:02:38.1]} 16. Be2 {[%clk 0:02:46.5]} 16... b5
{[%clk 0:02:37.5]} 17. a3 {[%clk 0:02:44.7]} 17... Qb6 {[%clk 0:02:31.7]} 18. h4
{[%clk 0:02:35.1]} 18... b4 {[%clk 0:02:30.9]} 19. axb4 {[%clk 0:02:33.6]} 19...
Qxb4 {[%clk 0:02:30.7]} 20. Qd2 {[%clk 0:02:30.3]} 20... Rb8 {[%clk 0:02:28.4]}
21. Nd1 {[%clk 0:02:10.5]} 21... Qc5 {[%clk 0:02:14.7]} 22. Qe3 {[%clk
0:01:55.4]} 22... Qb4+ {[%clk 0:02:02.8]} 23. Qd2 {[%clk 0:01:54.7]} 23... Qb3
{[%clk 0:02:01.4]} 24. Qe3 {[%clk 0:01:46.8]} 24... Qb4+ {[%clk 0:01:57.7]} 25.
Qd2 {[%clk 0:01:46.1]} 1/2-1/2

[Event "Early-Titled-Tuesday-Blitz-January-30-2024"]
[Site "Chess.com"]
[Date "2024.01.30"]
[Round "8"]
[White "Adar_07"]
[Black "chedimir"]
[Result "1-0"]
[WhiteElo "2637"]
[BlackElo "2423"]
[TimeControl "180+1"]
[EndTime "9:26:28 PST"]
[Termination "Adar_07 won by resignation"]

1. e4 {[%clk 0:02:57.6]} 1... c5 {[%clk 0:02:59.3]} 2. Nf3 {[%clk 0:02:57.5]}
2... d6 {[%clk 0:02:59.4]} 3. Bb5+ {[%clk 0:02:55.8]} 3... Nd7 {[%clk 0:02:57]}
4. O-O {[%clk 0:02:50.7]} 4... a6 {[%clk 0:02:53.2]} 5. Bxd7+ {[%clk 0:02:46.4]}
5... Bxd7 {[%clk 0:02:53]} 6. c4 {[%clk 0:02:47.3]} 6... Bc6 {[%clk 0:02:52.2]}
7. Nc3 {[%clk 0:02:46.9]} 7... Nf6 {[%clk 0:02:49.8]} 8. Re1 {[%clk 0:02:47.1]}
8... e5 {[%clk 0:02:49.1]} 9. d3 {[%clk 0:02:47.3]} 9... h6 {[%clk 0:02:48.8]}
10. Nh4 {[%clk 0:02:45.7]} 10... g6 {[%clk 0:02:48.3]} 11. f4 {[%clk 0:02:44.8]}
11... Bg7 {[%clk 0:02:45.7]} 12. f5 {[%clk 0:02:44]} 12... g5 {[%clk 0:02:44.7]}
13. Nf3 {[%clk 0:02:43.6]} 13... Nd7 {[%clk 0:02:42.2]} 14. g4 {[%clk 0:02:43]}
14... b5 {[%clk 0:02:41.7]} 15. b3 {[%clk 0:02:42.5]} 15... Bf6 {[%clk
0:02:40.5]} 16. Ne2 {[%clk 0:02:41.3]} 16... h5 {[%clk 0:02:39]} 17. gxh5 {[%clk
0:02:41.1]} 17... g4 {[%clk 0:02:32.9]} 18. Nd2 {[%clk 0:02:40.4]} 18... Ke7
{[%clk 0:02:25.9]} 19. Ng3 {[%clk 0:02:40.2]} 19... Qg8 {[%clk 0:02:25.3]} 20.
Ndf1 {[%clk 0:02:35.8]} 20... b4 {[%clk 0:02:08.8]} 21. Ne3 {[%clk 0:02:32.4]}
21... Bh4 {[%clk 0:02:07.4]} 22. Kg2 {[%clk 0:02:22.1]} 22... Bxg3 {[%clk
0:02:06.1]} 23. hxg3 {[%clk 0:02:23]} 23... Nf6 {[%clk 0:02:05.4]} 24. Rh1
{[%clk 0:02:21.7]} 24... Nxe4 {[%clk 0:01:52.8]} 25. dxe4 {[%clk 0:02:22.6]}
25... Bxe4+ {[%clk 0:01:52.4]} 26. Kf2 {[%clk 0:02:22.8]} 26... Bxh1 {[%clk
0:01:51.2]} 27. Qxh1 {[%clk 0:02:23.7]} 27... Qh7 {[%clk 0:01:44.3]} 28. Qb7+
{[%clk 0:02:17.7]} 28... Kf6 {[%clk 0:01:43.3]} 29. Nd5+ {[%clk 0:02:09.4]}
29... Kxf5 {[%clk 0:01:32.7]} 30. Qd7+ {[%clk 0:02:09.6]} 30... Ke4 {[%clk
0:01:32.2]} 31. Qxg4+ {[%clk 0:02:10.5]} 31... Kd3 {[%clk 0:01:30.7]} 32. Qe2+
{[%clk 0:02:11.4]} 1-0

[Event "Early-Titled-Tuesday-Blitz-January-30-2024"]
[Site "Chess.com"]
[Date "2024.01.30"]
[Round "8"]
[White "Practical-Play"]
[Black "adotand"]
[Result "0-1"]
[WhiteElo "2598"]
[BlackElo "2827"]
[TimeControl "180+1"]
[EndTime "9:26:40 PST"]
[Termination "adotand won by resignation"]

1. e4 {[%clk 0:03:00.9]} 1... Nc6 {[%clk 0:02:56.2]} 2. Nf3 {[%clk 0:02:57.3]}
2... d6 {[%clk 0:02:56.6]} 3. d4 {[%clk 0:02:56.5]} 3... Nf6 {[%clk 0:02:57.3]}
4. d5 {[%clk 0:02:35.1]} 4... Nb8 {[%clk 0:02:56.7]} 5. Nc3 {[%clk 0:02:25.8]}
5... g6 {[%clk 0:02:57.2]} 6. h3 {[%clk 0:02:22.5]} 6... Bg7 {[%clk 0:02:57.3]}
7. Be3 {[%clk 0:02:22.1]} 7... O-O {[%clk 0:02:57.5]} 8. Qd2 {[%clk 0:02:22.1]}
8... c6 {[%clk 0:02:58.2]} 9. Bh6 {[%clk 0:02:13.2]} 9... Nbd7 {[%clk
0:02:53.9]} 10. h4 {[%clk 0:01:55.6]} 10... Nc5 {[%clk 0:02:53.6]} 11. Bxg7
{[%clk 0:01:54.1]} 11... Kxg7 {[%clk 0:02:52.8]} 12. Qe3 {[%clk 0:01:40.4]}
12... h5 {[%clk 0:02:47.1]} 13. dxc6 {[%clk 0:01:26]} 13... bxc6 {[%clk
0:02:47.1]} 14. e5 {[%clk 0:01:25.9]} 14... Ng4 {[%clk 0:02:45.8]} 15. Qd4
{[%clk 0:01:25.6]} 15... Ne6 {[%clk 0:02:43.6]} 16. Qa4 {[%clk 0:01:22.9]} 16...
Qb6 {[%clk 0:02:42.5]} 17. O-O-O {[%clk 0:01:19.9]} 17... Nxf2 {[%clk
0:02:42.6]} 18. exd6 {[%clk 0:01:16.4]} 18... Nxd1 {[%clk 0:02:41.2]} 19. dxe7
{[%clk 0:01:10.8]} 19... Re8 {[%clk 0:02:41.4]} 20. Nxd1 {[%clk 0:01:05.9]}
20... Rxe7 {[%clk 0:02:40]} 21. Bd3 {[%clk 0:01:02.3]} 21... Rb8 {[%clk
0:02:38.6]} 22. g4 {[%clk 0:00:59.3]} 22... Qb4 {[%clk 0:02:25.1]} 23. Qxc6
{[%clk 0:00:55.2]} 23... Bb7 {[%clk 0:02:18.5]} 0-1

[Event "Early-Titled-Tuesday-Blitz-January-30-2024"]
[Site "Chess.com"]
[Date "2024.01.30"]
[Round "8"]
[White "whitemirrorninja"]
[Black "ferrufino64"]
[Result "1-0"]
[WhiteElo "2470"]
[BlackElo "2237"]
[TimeControl "180+1"]
[EndTime "9:27:11 PST"]
[Termination "whitemirrorninja won on time"]

1. e4 {[%clk 0:03:00.9]} 1... c5 {[%clk 0:02:43.7]} 2. Nc3 {[%clk 0:02:59.2]}
2... Nc6 {[%clk 0:02:42.6]} 3. Bb5 {[%clk 0:02:58]} 3... g6 {[%clk 0:02:31.6]}
4. Bxc6 {[%clk 0:02:54.4]} 4... dxc6 {[%clk 0:02:30.2]} 5. f4 {[%clk 0:02:53.8]}
5... Bg7 {[%clk 0:02:29.2]} 6. Nf3 {[%clk 0:02:52.7]} 6... Nf6 {[%clk
0:02:18.9]} 7. d3 {[%clk 0:02:52.4]} 7... O-O {[%clk 0:02:00.3]} 8. O-O {[%clk
0:02:52]} 8... Bg4 {[%clk 0:01:57.8]} 9. Qe1 {[%clk 0:02:51.8]} 9... Bxf3 {[%clk
0:01:57.7]} 10. Rxf3 {[%clk 0:02:52.4]} 10... Nd7 {[%clk 0:01:54]} 11. Rh3
{[%clk 0:02:51.7]} 11... f5 {[%clk 0:01:46.9]} 12. Qh4 {[%clk 0:02:48.1]} 12...
h6 {[%clk 0:01:43.9]} 13. Qg3 {[%clk 0:02:46]} 13... Kh7 {[%clk 0:01:41.5]} 14.
Be3 {[%clk 0:02:45]} 14... e6 {[%clk 0:01:39.8]} 15. e5 {[%clk 0:02:40.5]} 15...
Qe7 {[%clk 0:01:36.2]} 16. Kh1 {[%clk 0:02:40.5]} 16... Nb6 {[%clk 0:01:35.3]}
17. Qf2 {[%clk 0:02:35.4]} 17... Nd7 {[%clk 0:01:32.5]} 18. Rg1 {[%clk
0:02:36.1]} 18... b6 {[%clk 0:01:24.3]} 19. Nb1 {[%clk 0:02:36.6]} 19... Rad8
{[%clk 0:00:19.4]} 20. Nd2 {[%clk 0:02:36.6]} 20... Nb8 {[%clk 0:00:16.2]} 21.
Nf3 {[%clk 0:02:37]} 21... Kg8 {[%clk 0:00:13.7]} 22. g4 {[%clk 0:02:36.6]}
22... fxg4 {[%clk 0:00:12.1]} 23. Rxg4 {[%clk 0:02:37.5]} 23... Qf7 {[%clk
0:00:09.8]} 24. Rhg3 {[%clk 0:02:37.7]} 24... Kh7 {[%clk 0:00:09.2]} 25. Qg2
{[%clk 0:02:38.1]} 1-0

[Event "Early-Titled-Tuesday-Blitz-January-30-2024"]
[Site "Chess.com"]
[Date "2024.01.30"]
[Round "8"]
[White "Grossboss19"]
[Black "pirulillo"]
[Result "1-0"]
[WhiteElo "2611"]
[BlackElo "2298"]
[TimeControl "180+1"]
[EndTime "9:27:36 PST"]
[Termination "Grossboss19 won by resignation"]

1. Nf3 {[%clk 0:02:44.4]} 1... Nf6 {[%clk 0:02:59]} 2. d4 {[%clk 0:02:44.3]}
2... g6 {[%clk 0:02:59]} 3. c4 {[%clk 0:02:43.8]} 3... Bg7 {[%clk 0:02:59.2]} 4.
Nc3 {[%clk 0:02:41.8]} 4... O-O {[%clk 0:02:58.7]} 5. g3 {[%clk 0:02:39.6]} 5...
d6 {[%clk 0:02:56.9]} 6. Bg2 {[%clk 0:02:39.2]} 6... Bf5 {[%clk 0:02:56.5]} 7.
Nh4 {[%clk 0:02:36]} 7... Bc8 {[%clk 0:02:54.9]} 8. O-O {[%clk 0:02:35.7]} 8...
c6 {[%clk 0:02:51.5]} 9. e4 {[%clk 0:02:31.9]} 9... e5 {[%clk 0:02:48.7]} 10. d5
{[%clk 0:02:29.5]} 10... cxd5 {[%clk 0:02:46.5]} 11. cxd5 {[%clk 0:02:28.1]}
11... a6 {[%clk 0:02:42.1]} 12. f4 {[%clk 0:02:27.7]} 12... b5 {[%clk 0:02:36]}
13. a3 {[%clk 0:02:23.2]} 13... Nbd7 {[%clk 0:02:32.5]} 14. Nf3 {[%clk
0:02:19.4]} 14... Re8 {[%clk 0:02:29.4]} 15. Re1 {[%clk 0:02:17.8]} 15... a5
{[%clk 0:02:18.1]} 16. fxe5 {[%clk 0:02:13.3]} 16... Nxe5 {[%clk 0:02:16.8]} 17.
Nxe5 {[%clk 0:02:12.2]} 17... Rxe5 {[%clk 0:02:17]} 18. Bf4 {[%clk 0:02:07.3]}
18... Qb6+ {[%clk 0:02:09.3]} 19. Be3 {[%clk 0:02:03.9]} 19... Qb8 {[%clk
0:02:05.1]} 20. Bd4 {[%clk 0:02:03.1]} 20... Nd7 {[%clk 0:02:00.6]} 21. b4
{[%clk 0:01:49.5]} 21... Re8 {[%clk 0:01:52.1]} 22. Rb1 {[%clk 0:01:30.4]} 22...
axb4 {[%clk 0:01:45.1]} 23. Rxb4 {[%clk 0:01:24.6]} 23... Rxa3 {[%clk
0:01:43.2]} 24. Nxb5 {[%clk 0:01:21.6]} 24... Ba6 {[%clk 0:01:21.8]} 25. Bxg7
{[%clk 0:01:10.3]} 25... Kxg7 {[%clk 0:01:22.7]} 26. Qd4+ {[%clk 0:01:08.1]}
26... Ne5 {[%clk 0:01:16.4]} 27. Nxa3 {[%clk 0:01:07.4]} 1-0

[Event "Early-Titled-Tuesday-Blitz-January-30-2024"]
[Site "Chess.com"]
[Date "2024.01.30"]
[Round "8"]
[White "Nemegejas"]
[Black "maximnovik"]
[Result "1-0"]
[WhiteElo "2862"]
[BlackElo "2613"]
[TimeControl "180+1"]
[EndTime "9:27:44 PST"]
[Termination "Nemegejas won by resignation"]

1. Nf3 {[%clk 0:03:00.9]} 1... Nf6 {[%clk 0:02:58.3]} 2. g3 {[%clk 0:03:00.6]}
2... g6 {[%clk 0:02:58.8]} 3. Bg2 {[%clk 0:03:00.6]} 3... d5 {[%clk 0:02:59.3]}
4. O-O {[%clk 0:03:01.1]} 4... Bg7 {[%clk 0:02:59.9]} 5. d3 {[%clk 0:02:57.9]}
5... O-O {[%clk 0:03:00]} 6. c4 {[%clk 0:02:58.6]} 6... dxc4 {[%clk 0:02:57.9]}
7. dxc4 {[%clk 0:02:58.3]} 7... Qxd1 {[%clk 0:02:57]} 8. Rxd1 {[%clk 0:02:58.9]}
8... c6 {[%clk 0:02:57.3]} 9. Nc3 {[%clk 0:02:58.2]} 9... Na6 {[%clk 0:02:56.8]}
10. Bf4 {[%clk 0:02:52.8]} 10... Be6 {[%clk 0:02:54.8]} 11. b3 {[%clk
0:02:53.4]} 11... Rfd8 {[%clk 0:02:42.2]} 12. Rac1 {[%clk 0:02:48.9]} 12... Nc5
{[%clk 0:02:34.3]} 13. Be3 {[%clk 0:02:47.7]} 13... Nfe4 {[%clk 0:01:59.4]} 14.
Nxe4 {[%clk 0:02:26.2]} 14... Nxe4 {[%clk 0:01:59.1]} 15. Nd4 {[%clk 0:02:26.6]}
15... Bf5 {[%clk 0:01:41.6]} 16. g4 {[%clk 0:02:18.5]} 16... Bxd4 {[%clk
0:01:22.6]} 17. Rxd4 {[%clk 0:02:06.2]} 17... Rxd4 {[%clk 0:01:18.5]} 18. Bxd4
{[%clk 0:02:07.1]} 18... Rd8 {[%clk 0:01:00.9]} 19. Be3 {[%clk 0:02:04.4]} 19...
Nc3 {[%clk 0:00:38.3]} 20. Rxc3 {[%clk 0:02:01.4]} 20... Rd1+ {[%clk 0:00:38.8]}
21. Bf1 {[%clk 0:02:01]} 21... Bxg4 {[%clk 0:00:39.3]} 22. Rc1 {[%clk
0:02:01.6]} 22... Bxe2 {[%clk 0:00:37.7]} 23. Rxd1 {[%clk 0:02:00.8]} 23... Bxd1
{[%clk 0:00:38]} 24. Bxa7 {[%clk 0:02:00.6]} 24... e5 {[%clk 0:00:34.5]} 25. Bb8
{[%clk 0:01:53.7]} 25... f6 {[%clk 0:00:34.5]} 26. Bh3 {[%clk 0:01:53.7]} 26...
Bc2 {[%clk 0:00:30.8]} 27. Bc8 {[%clk 0:01:53.4]} 27... Bb1 {[%clk 0:00:30.2]}
28. Bxb7 {[%clk 0:01:54.1]} 28... Bxa2 {[%clk 0:00:30.3]} 29. b4 {[%clk
0:01:52.6]} 29... Bxc4 {[%clk 0:00:27.6]} 30. Bxc6 {[%clk 0:01:53.3]} 30... Kf7
{[%clk 0:00:27.6]} 31. b5 {[%clk 0:01:54]} 1-0

[Event "Early-Titled-Tuesday-Blitz-January-30-2024"]
[Site "Chess.com"]
[Date "2024.01.30"]
[Round "8"]
[White "garfield_pg"]
[Black "Sanyura"]
[Result "0-1"]
[WhiteElo "2467"]
[BlackElo "2643"]
[TimeControl "180+1"]
[EndTime "9:27:47 PST"]
[Termination "Sanyura won by checkmate"]

1. d4 {[%clk 0:03:00.9]} 1... Nf6 {[%clk 0:02:54.2]} 2. Bf4 {[%clk 0:03:00.3]}
2... g6 {[%clk 0:02:54.3]} 3. Nc3 {[%clk 0:03:00.2]} 3... Bg7 {[%clk 0:02:54]}
4. e4 {[%clk 0:03:00.7]} 4... O-O {[%clk 0:02:54.4]} 5. Qd2 {[%clk 0:03:01.3]}
5... d6 {[%clk 0:02:54]} 6. Bh6 {[%clk 0:02:59]} 6... c5 {[%clk 0:02:53.4]} 7.
Bxg7 {[%clk 0:02:51]} 7... Kxg7 {[%clk 0:02:53.3]} 8. d5 {[%clk 0:02:42.4]} 8...
e6 {[%clk 0:02:52.9]} 9. O-O-O {[%clk 0:02:23.3]} 9... exd5 {[%clk 0:02:52.3]}
10. exd5 {[%clk 0:02:24.2]} 10... Qa5 {[%clk 0:02:49.9]} 11. Kb1 {[%clk
0:02:17.9]} 11... b5 {[%clk 0:02:47.4]} 12. Bxb5 {[%clk 0:01:47.3]} 12... Na6
{[%clk 0:02:40.2]} 13. h4 {[%clk 0:01:41.8]} 13... Rb8 {[%clk 0:02:38]} 14. Bxa6
{[%clk 0:01:32.6]} 14... Qxa6 {[%clk 0:02:27.9]} 15. h5 {[%clk 0:01:29.9]} 15...
Qa3 {[%clk 0:02:26.3]} 16. b3 {[%clk 0:01:25.3]} 16... Bf5 {[%clk 0:02:24.6]}
17. Ka1 {[%clk 0:01:11]} 17... c4 {[%clk 0:02:15.4]} 18. Qd4 {[%clk 0:00:40.6]}
18... h6 {[%clk 0:01:52.2]} 19. g4 {[%clk 0:00:14.9]} 19... cxb3 {[%clk
0:01:52]} 20. gxf5 {[%clk 0:00:03.7]} 20... bxc2 {[%clk 0:01:50.1]} 21. Nge2
{[%clk 0:00:03.1]} 21... Qb2# {[%clk 0:01:50.2]} 0-1